bitfinex-derivatives/quotes_SOLF0:USTF0_20241103
["timestamp","ask_amount","ask_price","bid_price","bid_amount"]
[1730608530698,3.1,163.51,163.44,10.29622407]
[1730608531410,3.0593,163.5,163.46,3.0599]
[1730608531897,3.0593,163.5,163.45,3.06]
[1730608532095,13.39622407,163.51,163.42,10.29622407]
[1730608532605,13.39622407,163.51,163.41,1.2631]
[1730608532606,3.1,163.51,163.44,10.29622407]
[1730608533196,3.0595,163.49,163.44,13.35642407]
[1730608533399,3.1,163.51,163.46,10.29622407]
[1730608533991,6.159,163.51,163.46,13.35592407]
[1730608534191,3.1,163.51,163.46,13.35592407]
[1730608535299,3.0592,163.5,163.46,13.35592407]
[1730608536006,3.1,163.51,163.48,3.0595]
[1730608536205,1.3136,163.55,163.46,10.29622407]
[1730608536401,3.1,163.54,163.46,10.29622407]
[1730608536602,3.059,163.51,163.47,3.0597]
[1730608536912,3.059,163.51,163.46,10.29622407]
[1730608537102,3.1,163.54,163.46,10.29622407]
[1730608537417,3.1,163.54,163.46,13.35602407]
[1730608537705,3.0596,163.48,163.46,10.29622407]
[1730608537895,3.1,163.5,163.46,10.29622407]
[1730608538093,1.3136,163.55,163.46,10.29622407]
[1730608538094,3.1,163.49,163.46,10.29622407]
[1730608538505,3.0596,163.48,163.46,10.29622407]
[1730608538708,3.1,163.52,163.46,10.29622407]
[1730608538906,3.1,163.52,163.49,3.0593]
[1730608539305,3.1,163.52,163.48,10.29622407]
[1730608539706,3.1,163.52,163.43,10.29622407]
[1730608539918,1.324,163.51,163.43,10.29622407]
[1730608540101,3.1,163.52,163.49,10.29622407]
[1730608540420,3.1,163.52,163.44,10.29622407]
[1730608540910,3.0596,163.48,163.44,10.29622407]
[1730608541415,3.0596,163.48,163.44,13.35642407]
[1730608542908,10.29622407,163.54,163.42,10.29622407]
[1730608543211,10.29622407,163.52,163.42,10.29622407]
[1730608543618,3.0601,163.45,163.42,10.29622407]
[1730608543914,6.1601,163.45,163.42,10.29622407]
[1730608545610,3.1,163.45,163.4,11.63132407]
[1730608546605,3.1,163.45,163.42,10.29622407]
[1730608546606,3.1,163.44,163.42,10.29622407]
[1730608547212,3.1,163.44,163.43,3.0604]
[1730608547606,3.1,163.44,163.42,10.29622407]
[1730608548414,3.1,163.44,163.42,13.35682407]
[1730608549013,3.1,163.46,163.43,3.0604]
[1730608549215,3.1,163.47,163.44,10.29622407]
[1730608549720,3.1,163.47,163.44,13.35632407]
[1730608549916,3.0595,163.48,163.44,13.35632407]
[1730608550122,3.1,163.48,163.46,3.0598]
[1730608550824,3.0591,163.51,163.47,3.0596]
[1730608551022,1.3057,163.59,163.5,10.29622407]
[1730608551209,3.1,163.58,163.5,10.29622407]
[1730608551407,3.0584,163.54,163.51,3.0588]
[1730608551625,3.0584,163.54,163.5,10.29622407]
[1730608552311,3.0575,163.59,163.52,10.29622407]
[1730608552512,3.0575,163.59,163.56,10.29622407]
[1730608552716,3.1,163.6,163.56,10.29622407]
[1730608553029,3.0575,163.59,163.56,10.29622407]
[1730608554206,1.3057,163.66,163.56,10.29622407]
[1730608554430,3.1,163.65,163.59,3.0574]
[1730608555216,3.0567,163.63,163.58,13.35372407]
[1730608555827,3.0569,163.62,163.58,13.35372407]
[1730608556225,3.24,163.63,163.58,10.29622407]
[1730608556525,3.0573,163.6,163.56,10.29622407]
[1730608557511,3.0573,163.6,163.56,13.35422407]
[1730608558713,3.24,163.63,163.56,10.29622407]
[1730608558915,3.0576,163.58,163.56,10.29622407]
[1730608559130,3.24,163.63,163.56,10.29622407]
[1730608559418,3.0576,163.59,163.56,10.29622407]
[1730608559629,3.24,163.63,163.56,10.29622407]
[1730608559916,3.0578,163.57,163.54,10.29622407]
[1730608560119,3.24,163.58,163.54,10.29622407]
[1730608560324,3.24,163.57,163.53,1.3629]
[1730608560511,3.0581,163.56,163.53,1.3629]
[1730608561121,3.0584,163.54,163.53,1.3629]
[1730608561325,3.24,163.57,163.52,10.29622407]
[1730608561525,3.24,163.57,163.49,1.2907]
[1730608561526,3.24,163.57,163.5,10.29622407]
[1730608561719,3.24,163.57,163.49,1.2907]
[1730608561924,3.24,163.57,163.48,11.56402407]
[1730608562123,3.24,163.57,163.48,10.29622407]
[1730608562319,3.0593,163.49,163.48,10.29622407]
[1730608563520,3.24,163.51,163.48,10.29622407]
[1730608563726,6.299,163.51,163.46,16.46135247]
[1730608564331,3.24,163.51,163.46,16.46135247]
[1730608564829,3.0593,163.49,163.46,16.46135247]
[1730608565024,3.24,163.51,163.44,1.2678]
[1730608565621,3.0598,163.47,163.44,1.2678]
[1730608565829,3.24,163.51,163.44,4.3279]
[1730608566024,3.0596,163.48,163.44,4.3279]
[1730608566416,3.24,163.51,163.44,1.2678]
[1730608566647,3.24,163.51,163.41,17.77025247]
[1730608567025,3.24,163.51,163.41,20.83095247]
[1730608567228,3.0601,163.45,163.41,17.77025247]
[1730608567534,2.571,163.53,163.41,17.77025247]
[1730608567535,3.24,163.46,163.41,17.77025247]
[1730608567937,3.24,163.46,163.43,3.0603]
[1730608569727,6.2999,163.46,163.43,3.0603]
[1730608569933,3.0599,163.46,163.43,3.0603]
[1730608570925,3.0599,163.46,163.41,17.77025247]
[1730608570926,3.0599,163.46,163.42,3.0606]
[1730608571734,3.24,163.47,163.39,4.331]
[1730608571932,3.24,163.47,163.36,2.7169]
[1730608572135,1.324,163.46,163.36,1.3779]
[1730608572336,1.324,163.46,163.35,16.46135247]
[1730608572337,1.324,163.46,163.35,19.52325247]
[1730608572544,2.5964,163.45,163.35,19.52325247]
[1730608572731,3.0613,163.39,163.35,19.52325247]
[1730608572937,3.24,163.39,163.35,16.46135247]
[1730608573132,3.24,163.39,163.36,3.0617]
[1730608573439,3.24,163.39,163.32,16.46135247]
[1730608573638,3.24,163.39,163.32,3.0625]
[1730608573943,3.24,163.39,163.31,1.3609]
[1730608574340,3.0623,163.34,163.31,1.3609]
[1730608574726,3.0623,163.34,163.31,4.4236]
[1730608577444,3.0619,163.36,163.32,3.0625]
[1730608577639,3.24,163.39,163.31,1.3609]
[1730608578033,3.0621,163.35,163.31,4.4235]
[1730608578346,3.24,163.39,163.31,1.3609]
[1730608578525,3.062,163.35,163.32,3.0623]
[1730608578731,3.24,163.39,163.31,1.3609]
[1730608579442,2.5964,163.45,163.32,16.46135247]
[1730608579443,3.24,163.42,163.32,16.46135247]
[1730608580127,3.0615,163.38,163.34,3.0621]
[1730608580540,3.24,163.42,163.32,16.46135247]
[1730608580738,3.24,163.42,163.33,3.0623]
[1730608580739,3.0618,163.36,163.33,3.0623]
[1730608581538,3.0616,163.37,163.34,3.0621]
[1730608582640,3.24,163.37,163.31,1.3609]
[1730608583828,3.062,163.35,163.31,4.4235]
[1730608584944,3.24,163.37,163.31,4.4235]
[1730608585451,3.0613,163.39,163.35,3.0618]
[1730608585639,3.24,163.4,163.35,13.35243565]
[1730608586834,3.24,163.4,163.35,10.29063565]
[1730608587335,3.0613,163.39,163.35,13.35243565]
[1730608587541,3.24,163.4,163.35,13.35243565]
[1730608588147,3.0615,163.38,163.35,10.29063565]
[1730608589158,3.24,163.4,163.34,3.062]
[1730608589353,3.0619,163.36,163.33,3.0623]
[1730608589746,3.24,163.4,163.31,11.65153565]
[1730608589949,3.0619,163.35,163.32,3.0624]
[1730608590248,3.24,163.4,163.33,10.29063565]
[1730608590849,3.0617,163.37,163.33,13.35273565]
[1730608591050,3.0617,163.37,163.33,10.29063565]
[1730608592050,3.24,163.4,163.33,10.29063565]
[1730608592254,3.0614,163.38,163.35,3.0618]
[1730608592751,3.24,163.4,163.33,10.29063565]
[1730608592957,6.3012,163.4,163.35,10.29063565]
[1730608593344,12.88703565,163.45,163.35,10.29063565]
[1730608593345,2.5964,163.45,163.35,10.29063565]
[1730608593555,3.0609,163.41,163.38,3.0612]
[1730608593860,3.24,163.44,163.35,10.29063565]
[1730608594048,3.0608,163.41,163.38,3.0613]
[1730608594565,3.0608,163.41,163.31,14.89153565]
[1730608594566,3.24,163.44,163.37,10.29063565]
[1730608595246,3.0607,163.42,163.39,3.0612]
[1730608599663,3.24,163.44,163.4,3.0608]
[1730608599664,3.0604,163.44,163.4,3.0608]
[1730608599858,3.24,163.43,163.39,10.29063565]
[1730608600461,6.3004,163.44,163.41,3.0607]
[1730608600851,3.0606,163.42,163.39,13.35173565]
[1730608601162,3.24,163.44,163.37,10.29063565]
[1730608601558,3.0608,163.42,163.37,10.29063565]
[1730608601753,3.24,163.44,163.37,10.29063565]
[1730608602257,3.24,163.44,163.39,3.0612]
[1730608602455,3.24,163.44,163.37,10.29063565]
[1730608602858,3.061,163.41,163.38,3.0613]
[1730608603767,3.24,163.44,163.38,3.0613]
[1730608604467,3.0609,163.41,163.38,3.0613]
[1730608604862,3.24,163.44,163.35,10.29063565]
[1730608605855,3.0613,163.39,163.36,3.0616]
[1730608607067,3.24,163.44,163.36,3.0616]
[1730608607261,3.24,163.44,163.35,10.29063565]
[1730608607262,1.2609,163.43,163.35,10.29063565]
[1730608607562,2.5262,163.43,163.33,10.29063565]
[1730608607763,3.0617,163.37,163.33,10.29063565]
[1730608608072,3.24,163.37,163.33,10.29063565]
[1730608608371,3.0618,163.36,163.34,3.062]
[1730608608675,3.0618,163.36,163.33,10.29063565]
[1730608609558,3.24,163.37,163.33,10.29063565]
[1730608609759,6.3017,163.37,163.34,3.0621]
[1730608615063,3.0619,163.36,163.33,13.35273565]
[1730608617178,3.0621,163.35,163.32,3.0624]
[1730608618676,3.0621,163.35,163.31,11.65153565]
[1730608618873,3.0621,163.35,163.33,3.0623]
[1730608619200,3.24,163.37,163.31,11.65153565]
[1730608619201,3.24,163.37,163.31,10.29063565]
[1730608619483,3.0624,163.33,163.3,3.0628]
[1730608619682,3.24,163.37,163.3,3.0628]
[1730608620487,13.32528115,163.36,163.26,10.29063565]
[1730608620780,14.34593565,163.36,163.26,10.29063565]
[1730608620980,14.34593565,163.36,163.28,3.0631]
[1730608621277,3.14,163.35,163.3,10.29063565]
[1730608621676,6.202,163.35,163.32,3.0625]
[1730608621877,3.14,163.35,163.3,10.29063565]
[1730608622380,3.14,163.35,163.32,10.29063565]
[1730608623080,3.14,163.35,163.33,3.0622]
[1730608624577,3.14,163.35,163.32,10.29063565]
[1730608624883,6.2019,163.35,163.32,13.35303565]
[1730608625387,3.14,163.35,163.32,10.29063565]
[1730608625680,3.14,163.35,163.33,3.0623]
[1730608625882,3.14,163.35,163.32,10.29063565]
[1730608626085,6.2021,163.35,163.32,13.35293565]
[1730608626268,6.2021,163.35,163.32,10.29063565]
[1730608626474,3.14,163.35,163.32,10.29063565]
[1730608626781,10.29063565,163.43,163.34,3.0621]
[1730608626984,3.14,163.42,163.34,3.0621]
[1730608627780,3.0617,163.37,163.34,3.0621]
[1730608627986,3.14,163.42,163.35,3.0619]
[1730608628183,3.0616,163.37,163.35,3.0619]
[1730608628483,11.63623565,163.45,163.38,3.0613]
[1730608628681,3.14,163.44,163.35,10.29063565]
[1730608628882,3.0614,163.39,163.35,10.29063565]
[1730608629081,3.14,163.44,163.35,13.35243565]
[1730608629281,3.0614,163.38,163.35,13.35243565]
[1730608631792,3.0614,163.38,163.37,6.58592397]
[1730608634386,3.0616,163.37,163.34,6.58592397]
[1730608634687,3.14,163.37,163.34,6.58592397]
[1730608635191,3.0619,163.35,163.34,6.58592397]
[1730608635587,3.0624,163.33,163.31,6.58592397]
[1730608636193,3.0624,163.33,163.31,9.64862397]
[1730608636388,3.0624,163.33,163.32,6.58592397]
[1730608636693,3.0622,163.34,163.32,6.58592397]
[1730608637892,3.0622,163.34,163.31,3.0627]
[1730608638697,3.14,163.37,163.32,3.0624]
[1730608638698,3.0621,163.35,163.32,3.0624]
[1730608639389,3.0622,163.34,163.32,3.0624]
[1730608639590,3.0622,163.34,163.31,3.0626]
[1730608640686,3.14,163.37,163.3,13.35922451]
[1730608640687,3.0625,163.32,163.3,13.35922451]
[1730608640999,3.14,163.37,163.3,13.35922451]
[1730608641297,6.18083375,163.37,163.29,3.0629]
[1730608641488,6.18083375,163.37,163.28,10.29642451]
[1730608641683,3.0627,163.31,163.28,10.29642451]
[1730608641892,6.2027,163.31,163.28,10.29642451]
[1730608642083,6.2027,163.31,163.26,10.29642451]
[1730608642084,3.14,163.31,163.26,10.29642451]
[1730608642285,3.14,163.31,163.22,11.56382451]
[1730608642492,3.14,163.31,163.22,1.2674]
[1730608642689,1.3329,163.3,163.2,10.29642451]
[1730608643099,3.0642,163.23,163.2,3.0646]
[1730608643303,3.14,163.24,163.18,11.63072451]
[1730608643497,3.14,163.23,163.18,11.63072451]
[1730608643700,3.44,163.34,163.22,10.29642451]
[1730608643902,3.44,163.35,163.29,10.29642451]
[1730608644098,10.29642451,163.39,163.3,3.0627]
[1730608644099,3.0622,163.34,163.3,3.0627]
[1730608644401,3.44,163.36,163.29,10.29642451]
[1730608645205,3.0624,163.33,163.29,13.35932451]
[1730608646300,3.44,163.36,163.25,1.3343]
[1730608646501,3.44,163.36,163.27,10.29642451]
[1730608646705,1.3878,163.35,163.27,10.29642451]
[1730608647101,11.68422451,163.35,163.25,11.63072451]
[1730608647302,1.2962,163.34,163.25,10.29642451]
[1730608648007,3.0628,163.31,163.24,4.3312]
[1730608648197,3.44,163.3,163.24,4.3312]
[1730608648600,3.0634,163.28,163.24,4.3312]
[1730608653107,3.44,163.3,163.24,1.2674]
[1730608653316,3.0637,163.26,163.24,1.2674]
[1730608653809,3.0637,163.26,163.23,13.36052451]
[1730608654009,13.73642451,163.3,163.21,3.0644]
[1730608654220,3.44,163.29,163.2,10.29642451]
[1730608654414,3.44,163.29,163.23,10.29642451]
[1730608654613,3.0636,163.27,163.23,13.36052451]
[1730608654802,3.44,163.29,163.23,10.29642451]
[1730608656139,3.0638,163.25,163.23,10.29642451]
[1730608656615,3.44,163.29,163.21,3.0645]
[1730608656822,3.44,163.29,163.2,10.29642451]
[1730608657011,3.44,163.29,163.19,1.2719]
[1730608657012,11.56052451,163.28,163.19,1.2719]
[1730608657216,11.56052451,163.28,163.18,13.36142451]
[1730608657410,1.3003,163.27,163.18,10.29642451]
[1730608657809,3.0647,163.21,163.18,10.29642451]
[1730608658017,3.44,163.21,163.18,10.29642451]
[1730608660313,6.5046,163.21,163.18,13.36152451]
[1730608661108,6.5046,163.21,163.18,10.29642451]
[1730608661512,3.44,163.21,163.16,10.29642451]
[1730608661716,3.44,163.21,163.15,3.0656]
[1730608662211,3.0654,163.17,163.14,13.36232451]
[1730608664119,3.0655,163.16,163.14,10.29642451]
[1730608664724,3.44,163.21,163.14,10.29642451]
[1730608664914,3.0654,163.17,163.14,13.36232451]
[1730608665306,3.44,163.21,163.14,10.29642451]
[1730608665517,3.065,163.19,163.13,4.3853]
[1730608665704,3.44,163.21,163.13,4.3853]
[1730608666212,3.44,163.21,163.13,1.3193]
[1730608666521,3.0657,163.15,163.12,13.36252451]
[1730608671226,3.44,163.16,163.15,3.0657]
[1730608673528,3.0653,163.17,163.15,3.0657]
[1730608673727,3.0653,163.17,163.15,9.6614272]
[1730608674416,3.0653,163.17,163.15,6.5957272]
[1730608675641,6.325,163.19,163.16,9.6612272]
[1730608675822,3.065,163.19,163.16,9.6612272]
[1730608676018,3.26,163.2,163.16,6.5957272]
[1730608676216,3.0652,163.18,163.16,6.5957272]
[1730608676411,3.26,163.2,163.16,6.5957272]
[1730608676922,3.065,163.19,163.16,9.6611272]
[1730608677226,3.26,163.2,163.16,9.6611272]
[1730608678025,3.065,163.19,163.16,9.6611272]
[1730608680324,6.5957272,163.17,163.07,6.5957272]
[1730608680514,6.5957272,163.14,163.07,6.5957272]
[1730608680719,3.26,163.13,163.07,6.5957272]
[1730608681123,3.26,163.13,163.08,3.0669]
[1730608681124,6.3262,163.13,163.08,3.0669]
[1730608681930,3.0665,163.11,163.07,9.6629272]
[1730608682125,6.5957272,163.12,163.06,7.8877272]
[1730608682325,6.5957272,163.1,163.06,7.8877272]
[1730608682532,3.26,163.09,163.06,7.8877272]
[1730608683026,3.26,163.09,163.07,3.0672]
[1730608683224,3.067,163.08,163.06,1.292]
[1730608683531,3.26,163.09,163.06,7.8877272]
[1730608684633,6.3269,163.09,163.06,7.8877272]
[1730608684927,3.26,163.09,163.06,7.8877272]
[1730608685128,3.0671,163.08,163.06,7.8877272]
[1730608685514,3.26,163.09,163.06,7.8877272]
[1730608685724,6.3268,163.09,163.06,7.8877272]
[1730608686818,6.3268,163.09,163.06,10.9551272]
[1730608692335,6.3265,163.11,163.06,7.8877272]
[1730608692937,6.3265,163.11,163.07,3.0671]
[1730608693435,3.0666,163.1,163.07,3.0671]
[1730608693641,3.26,163.11,163.08,3.067]
[1730608695325,6.3265,163.11,163.08,3.067]
[1730608698046,3.26,163.11,163.08,3.067]
[1730608698342,3.26,163.14,163.1,6.5957272]
[1730608698548,3.26,163.14,163.11,6.5957272]
[1730608698549,6.3259,163.14,163.11,6.5957272]
[1730608699538,6.3259,163.14,163.11,9.6620272]
[1730608700139,6.3259,163.14,163.12,3.0662]
[1730608701656,3.26,163.14,163.12,3.0662]
[1730608706550,3.26,163.14,163.12,9.6619272]
[1730608707253,3.0654,163.17,163.14,3.0658]
[1730608707452,6.3054,163.17,163.14,3.0658]
[1730608708259,3.0654,163.17,163.15,6.5957272]
[1730608714168,3.0649,163.2,163.17,3.0653]
[1730608714367,3.24,163.19,163.17,3.0653]
[1730608714564,3.24,163.19,163.16,6.5957272]
[1730608714962,6.5957272,163.22,163.16,6.5957272]
[1730608715171,3.0649,163.19,163.16,9.6611272]
[1730608716468,3.0649,163.19,163.16,6.5957272]
[1730608716668,3.0649,163.19,163.17,3.0653]
[1730608717666,3.0648,163.2,163.18,6.5957272]
[1730608718876,3.064,163.25,163.22,3.0644]
[1730608719069,3.24,163.24,163.22,6.5957272]
[1730608719668,3.24,163.24,163.22,9.6599272]
[1730608719867,6.304,163.25,163.22,9.6599272]
[1730608720380,3.064,163.24,163.22,9.6599272]
[1730608724768,3.064,163.24,163.22,6.5957272]
[1730608726878,3.0642,163.23,163.2,9.6604272]
[1730608727972,6.5957272,163.22,163.18,6.5957272]
[1730608728175,6.5957272,163.21,163.16,6.5957272]
[1730608728375,3.24,163.2,163.16,6.5957272]
[1730608728572,3.0651,163.19,163.16,9.6611272]
[1730608728779,9.8357272,163.2,163.15,6.5957272]
[1730608729274,9.8357272,163.2,163.13,6.5957272]
[1730608729275,3.0656,163.16,163.13,6.5957272]
[1730608731674,3.0656,163.16,163.13,9.6618272]
[1730608732381,6.5957272,163.18,163.15,3.0657]
[1730608732382,3.0653,163.18,163.15,3.0657]
[1730608738485,6.5957272,163.19,163.15,3.0657]
[1730608738692,3.0652,163.18,163.15,3.0657]
[1730608740390,3.0654,163.17,163.15,3.0657]
[1730608740981,3.0652,163.18,163.15,3.0657]
[1730608742906,9.8357272,163.2,163.15,3.0657]
[1730608743210,3.0653,163.17,163.15,3.0657]
[1730608743511,6.5957272,163.19,163.13,6.5957272]
[1730608743722,3.0656,163.16,163.13,9.6616272]
[1730608744013,6.5957272,163.18,163.13,6.5957272]
[1730608744315,3.0658,163.15,163.13,6.5957272]
[1730608745199,3.0658,163.15,163.13,9.6618272]
[1730608745387,3.0658,163.15,163.13,6.5957272]
[1730608745798,3.14,163.15,163.13,9.6616272]
[1730608746186,6.2058,163.15,163.13,6.5957272]
[1730608747293,3.14,163.15,163.13,9.6617272]
[1730608748287,3.14,163.15,163.14,9.6616272]
[1730608752495,6.2048,163.2,163.14,6.5957272]
[1730608752701,6.2048,163.2,163.17,6.5957272]
[1730608753089,6.2048,163.2,163.17,9.6609272]
[1730608758897,3.0654,163.17,163.15,6.5957272]
[1730608759101,3.0654,163.17,163.14,9.6615272]
[1730608759292,6.5957272,163.19,163.14,6.5957272]
[1730608759493,3.0657,163.15,163.14,6.5957272]
[1730608759792,6.5957272,163.19,163.14,6.5957272]
[1730608760401,3.0656,163.16,163.14,6.5957272]
[1730608761395,3.14,163.2,163.15,6.5957272]
[1730608761906,9.7357272,163.2,163.15,6.5957272]
[1730608762095,3.0652,163.18,163.15,9.6613272]
[1730608771613,3.0653,163.17,163.15,9.6613272]
[1730608773907,6.5957272,163.18,163.12,9.3914272]
[1730608774417,3.0659,163.14,163.12,9.3914272]
[1730608775104,3.0654,163.17,163.14,3.0658]
[1730608775408,3.0654,163.17,163.15,6.5957272]
[1730608778611,3.12,163.18,163.14,6.5957272]
[1730608778815,3.0655,163.16,163.14,6.5957272]
[1730608780014,3.12,163.18,163.14,6.5957272]
[1730608780216,3.066,163.14,163.12,9.3914272]
[1730608780618,3.08956755,163.2,163.09,6.5957272]
[1730608780619,3.0665,163.11,163.09,6.5957272]
[1730608780821,3.12,163.13,163.1,6.5957272]
[1730608781409,3.12,163.13,163.12,6.5957272]
[1730608781616,3.12,163.15,163.12,6.5957272]
[1730608781822,3.12,163.15,163.13,6.5957272]
[1730608782626,6.1857,163.15,163.13,6.5957272]
[1730608782832,3.12,163.15,163.13,6.5957272]
[1730608783020,3.12,163.17,163.15,3.0657]
[1730608783218,3.12,163.17,163.15,9.6614272]
[1730608783616,6.1853,163.17,163.15,9.6614272]
[1730608783819,3.12,163.17,163.15,9.6614272]
[1730608784011,6.5957272,163.22,163.15,6.5957272]
[1730608784217,6.5957272,163.23,163.19,6.5957272]
[1730608784520,3.12,163.22,163.2,6.5957272]
[1730608784719,3.12,163.22,163.12,3.12]
[1730608784720,3.12,163.22,163.21,6.5957272]
[1730608784921,6.5957272,163.27,163.21,6.5957272]
[1730608784922,3.12,163.25,163.21,6.5957272]
[1730608785122,6.5957272,163.28,163.23,6.5957272]
[1730608785329,18.22138411,163.28,163.23,6.5957272]
[1730608785630,3.0637,163.26,163.23,6.5957272]
[1730608785830,3.12,163.27,163.23,6.5957272]
[1730608786615,3.064,163.25,163.23,6.5957272]
[1730608787623,9.7157272,163.27,163.21,6.5957272]
[1730608788826,3.0643,163.23,163.21,6.5957272]
[1730608796643,3.0639,163.25,163.21,6.5957272]
[1730608796841,3.0639,163.25,163.23,6.5957272]
[1730608798431,18.21832081,163.29,163.23,6.5957272]
[1730608798747,3.0637,163.26,163.24,6.5957272]
[1730608801048,3.12,163.28,163.25,6.5957272]
[1730608801245,6.5957272,163.32,163.25,6.5957272]
[1730608801439,3.12,163.31,163.27,6.5957272]
[1730608802237,3.0633,163.28,163.27,6.5957272]
[1730608802641,6.5957272,163.3,163.25,6.5957272]
[1730608803044,3.0635,163.27,163.25,6.5957272]
[1730608805951,3.064,163.25,163.24,6.5957272]
[1730608810350,6.5957272,163.3,163.24,6.5957272]
[1730608810553,3.12,163.3,163.26,6.5957272]
[1730608812261,3.0633,163.28,163.26,6.5957272]
[1730608817758,6.5957272,163.32,163.27,6.5957272]
[1730608817961,3.063,163.3,163.29,6.5957272]
[1730608818356,3.0634,163.27,163.26,6.5957272]
[1730608818556,6.5957272,163.3,163.24,6.5957272]
[1730608819171,3.0636,163.27,163.24,6.5957272]
[1730608819661,3.0636,163.26,163.24,6.5957272]
[1730608819863,3.0636,163.26,163.25,6.5957272]
[1730608821261,3.064,163.24,163.21,6.5957272]
[1730608821564,6.5957272,163.25,163.21,6.5957272]
[1730608821779,3.12,163.26,163.24,6.5957272]
[1730608823364,3.0638,163.25,163.24,6.5957272]
[1730608832385,3.0645,163.22,163.21,6.5957272]
[1730608832678,6.5957272,163.24,163.2,1.3177]
[1730608833463,3.0646,163.21,163.2,1.3177]
[1730608835585,6.5957272,163.23,163.18,6.5957272]
[1730608835772,3.0651,163.19,163.18,6.5957272]
[1730608835974,3.12,163.22,163.16,7.8629272]
[1730608836671,3.12,163.22,163.16,1.2672]
[1730608836672,3.0653,163.17,163.16,1.2672]
[1730608838175,3.0653,163.17,163.15,6.5957272]
[1730608850189,6.5957272,163.19,163.14,6.5957272]
[1730608850392,3.0659,163.14,163.13,7.9716272]
[1730608851391,3.0658,163.15,163.13,7.9716272]
[1730608852795,3.12,163.17,163.13,7.9716272]
[1730608853798,3.12,163.17,163.13,6.5957272]
[1730608854002,3.0661,163.13,163.11,6.5957272]
[1730608854205,3.12,163.17,163.1,7.9139272]
[1730608854206,6.5957272,163.15,163.1,7.9139272]
[1730608855002,3.0664,163.12,163.1,7.9139272]
[1730608855703,6.5957272,163.15,163.1,7.9139272]
[1730608856004,3.0664,163.11,163.1,7.9139272]
[1730608857814,3.0664,163.11,163.1,6.5957272]
[1730608858502,6.5957272,163.13,163.09,1.3056]
[1730608858710,3.0666,163.1,163.09,1.3056]
[1730608858906,3.12,163.12,163.07,6.5957272]
[1730608860725,3.067,163.09,163.07,6.5957272]
[1730608861215,3.12,163.12,163.07,6.5957272]
[1730608861412,6.5957272,163.1,163.05,1.2727]
[1730608861728,9.7157272,163.12,163.05,7.8684272]
[1730608861925,6.5957272,163.13,163.07,9.6629272]
[1730608862223,9.7157272,163.12,163.07,6.5957272]
[1730608862427,3.12,163.11,163.07,6.5957272]
[1730608862818,3.0669,163.09,163.07,6.5957272]
[1730608863423,3.0669,163.09,163.06,6.5957272]
[1730608864431,3.0672,163.07,163.06,6.5957272]
[1730608864628,3.0672,163.07,163.05,1.2727]
[1730608865022,3.0674,163.06,163.05,1.2727]
[1730608865232,6.5957272,163.09,163.04,6.5957272]
[1730608866130,3.0676,163.05,163.02,6.5957272]
[1730608866319,3.0676,163.05,163.02,9.6638272]
[1730608867133,6.5957272,163.08,163.02,6.5957272]
[1730608867728,3.0678,163.04,163.02,6.5957272]
[1730608868032,6.5957272,163.03,162.98,6.5957272]
[1730608868220,3.0684,163.01,162.97,6.5957272]
[1730608868416,6.5957272,162.98,162.94,6.5957272]
[1730608868616,9.7157272,162.98,162.94,6.5957272]
[1730608868917,3.0692,162.97,162.94,6.5957272]
[1730608869121,9.7157272,162.98,162.93,6.5957272]
[1730608869323,6.5957272,162.97,162.93,6.5957272]
[1730608869625,3.0693,162.96,162.92,6.5957272]
[1730608869928,3.12,162.98,162.92,6.5957272]
[1730608870132,3.0692,162.97,162.92,9.6656272]
[1730608870724,3.12,162.98,162.92,9.6656272]
[1730608870929,3.0693,162.96,162.92,9.6656272]
[1730608872225,6.5957272,163.03,162.95,6.5957272]
[1730608872434,3.12,163.02,162.98,6.5957272]
[1730608872629,3.12,163.01,162.98,6.5957272]